Workbook

Sheet Instructions
E2: Costing tool to calculate costs of a conventional OR and a hybrid OR
E4: This costing tool is a supplement of the article "Understanding the costs of surgery: a bottom-up cost analysis of both a hybrid and conventional operating room".
E5: This study aimed to perform a comprehensive bottom-up cost-analysis to inform clinicians and policy makers on the costs and cost drivers of an (hybrid) OR
E6: as a first step in evaluating the added value of the hybrid OR. This costing tool enables usage and adjustment of the input parameters to a specific hospital or
B7: Instructions | E7: country setting It is developed to provide insight in the costs and cost drivers of the conventional and hybrid OR.
E9: The menu on the left side can be used to navigate trough the costing tool.
E10: * In the sheet 'input parameters' and 'cost parameters' all input variables are provided. All cells highlighted in blue can be adapted to country or site specific values.
B11: Input parameters | E11: * The 'results' sheet provides the total annual and per minute costs for the different cost categories (construction, inventory, personnel and overhead) and the total
E12: per minute costs for both the conventional and hybrid OR.
E13: * The sheet 'figures' shows (1) the annual fixed costs of the conventional and hybrid OR; (2) the total costs per minute for the conventional and hybrid OR;
E14: (3) the costs per minute for the conventional and hybrid OR for different utilization rates of the OR; (4) the costs per minute for the hybrid OR for different utilization
B15: Cost parameters | E15: rate of the fixed C-arm.
B19: Results
B23: Figures

Sheet Input
E2: Input parameters
E4: 1. Construction | H4: Original value in model | I4: Source original value | J4: Min | K4: Max
F5: Surface conventional OR (m2) | G5: 48.5 | H5: 48.5 | J5: 40.6 | K5: 57.0
F6: Surface hybrid OR (m2) | G6: 85.4 | H6: 85.4 | J6: 52.3 | K6: 106.2
B7: Instructions
F8: Lifespan of buildings (year) | G8: 25 | H8: 25 | I8: Manual for cost research in the Netherlands
F9: Annual interest rate (%) | G9: 4.2% | H9: 0.042 | I9: Manual for cost research in the Netherlands
F10: Maintenance costs (%) | G10: 5% | H10: 0.05 | I10: Manual for cost research in the Netherlands
B11: Input parameters | F11: Annuity | G11: =(1/Annual_interest_rate_buildings)*(1-1/((1+Annual_interest_rate_buildings)^Lifespan_of_buildings)) -> 15.30
E14: 2. Inventory
B15: Cost parameters | F15: Depreciation period of inventory (year) | G15: 10 | H15: 10 | I15: Manual for cost research in the Netherlands
F16: Annual interest rate (%) | G16: 4.20% | H16: 0.042 | I16: Manual for cost research in the Netherlands
F17: Maintenance costs (%) | G17: 5% | H17: 0.05 | I17: Manual for cost research in the Netherlands
F18: Maintenance costs for advanced imaging technologies (%) | G18: 8% | H18: 0.08 | I18: Manual for cost research in the Netherlands
B19: Results | F19: Annuity | G19: =(1/Annual_interest_rate_inventory)*(1-1/((1+Annual_interest_rate_inventory)^Depreciation_period_of_inventory)) -> 8.03
E22: 3. Personnel
B23: Figures | F23: Conventional OR
F24: Surgeon | G24: 1 | H24: 1 | I24: Based on participating hospitals
F25: OR assistant | G25: 3 | H25: 3 | I25: Based on participating hospitals
F26: Anesthesist | G26: 0.5 | H26: 0.5 | I26: Based on participating hospitals
F27: Anesthetic assistant | G27: 1 | H27: 1 | I27: Based on participating hospitals
F29: Hybrid OR
F30: Surgeon | G30: 1 | H30: 1 | I30: Based on participating hospitals
F31: OR assistant | G31: 3 | H31: 3 | I31: Based on participating hospitals
F32: Anesthesist | G32: 0.5 | H32: 0.5 | I32: Based on participating hospitals
F33: Anesthetic assistant | G33: 1 | H33: 1 | I33: Based on participating hospitals
F34: Technician | G34: 1 | H34: 1 | I34: Based on participating hospitals
E37: 4. Overhead
F38: Overhead over direct costs* | G38: 38% | H38: 0.38 | I38: Manual for cost research in the Netherlands
F39: * personnel and construction costs
E42: 5. Utilization of ORs | J42: Min | K42: Max
F43: Available hours of OR per year | G43: =51*5*8 -> 2,040 | H43: 2,040 | I43: Assumption
F44: Utilization rate conventional OR | G44: 92% | H44: 0.92 | I44: Based on participating hospitals | J44: 0.87 | K44: 0.96
F45: Utilization rate hybrid OR | G45: 43% | H45: 0.43 | I45: Based on participating hospitals | J45: 0.14 | K45: 0.55
I54: 0.2

Sheet Costs
E2: Cost parameters
E4: 1. Construction | H4: Original value in model | I4: Source original value | J4: Min | K4: Max | L4: Original value in model
F5: Cost for a m2 of OR | G5: € 12,804 | H5: 12,804 | I5: Based on participating hospitals | J5: € 10,064 | K5: € 14,768 | L5: 10,064 | M5: 14,768
F6: Total costs conventional OR | G6: =Costs_m2OR*Surface_conventional_OR -> € 621,231 | J6: =min_Csurface*min_surface_conventional -> € 408,598 | K6: =max_Csurface*max_surface_conventional -> € 841,776
B7: Instructions | F7: Total costs hybrid OR | G7: =Costs_m2OR*Surface_hybrid_OR -> € 1,092,915 | J7: =min_Csurface*min_surface_hybrid -> € 526,347 | K7: =max_Csurface*max_surface_hybrid -> € 1,568,362
E10: 2. Inventory | H10: Original value in model | J10: Min | K10: Max | L10: Original value in model
B11: Input parameters | F11: Conventional OR
F12: General inventory | G12: € 230,421 | H12: 230,421 | I12: Based on participating hospitals | J12: x | K12: x | L12: 190,027 | M12: 255,000
F13: Anesthesia | G13: € 128,308 | H13: 128,308 | I13: Based on participating hospitals | J13: x | K13: x | L13: 65,000 | M13: 177,052
F14: OR lights | G14: € 38,592 | H14: 38,592 | I14: Based on participating hospitals | J14: x | K14: x | L14: 20,030 | M14: 73,134
B15: Cost parameters | F15: Arm pendants | G15: € 69,262 | H15: 69,262 | I15: Based on participating hospitals | J15: x | K15: x | L15: 40,000 | M15: 96,450
F16: OR table | G16: € 105,981 | H16: 105,981 | I16: Based on participating hospitals | J16: x | K16: x | L16: 50,000 | M16: 155,160
F17: Image routing system | G17: € 76,812 | H17: 76,812 | I17: Based on participating hospitals | J17: x | K17: x | L17: 0 | M17: 122,059
B19: Results | F19: Hybrid OR
F20: General inventory | G20: € 244,421 | H20: 244,421 | I20: Based on participating hospitals | J20: x | K20: x | L20: 190,027 | M20: 296,500
F21: Anesthesia | G21: € 128,308 | H21: 128,308 | I21: Based on participating hospitals | J21: x | K21: x | L21: 65,000 | M21: 177,052
F22: OR lights | G22: € 42,598 | H22: 42,598 | I22: Based on participating hospitals | J22: x | K22: x | L22: 32,000 | M22: 73,134
B23: Figures | F23: Arm pendants | G23: € 94,789 | H23: 94,789 | I23: Based on participating hospitals | J23: x | K23: x | L23: 56,000 | M23: 135,333
F24: OR table | G24: € 265,222 | H24: 265,222 | I24: Based on participating hospitals | J24: x | K24: x | L24: 215,000 | M24: 307,131
F25: Image routing system | G25: € 93,126 | H25: 93,126 | I25: Based on participating hospitals | J25: x | K25: x | L25: 0 | M25: 150,000
F26: X-ray radiation protection aprons | G26: € 18,384 | H26: 18,384 | I26: Based on participating hospitals | J26: x | K26: x | L26: 13,354 | M26: 23,682
F27: C-arm cone-beam CT | G27: € 1,361,554 | H27: 1,361,554 | I27: Based on participating hospitals | J27: x | K27: x | L27: 1,125,649 | M27: 1,550,000
E30: 3. Personnel | J30: Min | K30: Max | L30: Original value in model
F31: Surgeon | G31: 119.15 | H31: 119.15 | I31: Manual for cost research in the Netherlands | J31: 117.59 | K31: 120.71 | L31: 117.59 | M31: 120.7
F32: OR assistant | G32: 37.45 | H32: 37.45 | I32: Collective Labor Agreements academic and general hospitals | J32: 36.84 | K32: 38.06 | L32: 36.84 | M32: 38.06
F33: Anesthesist | G33: 119.15 | H33: 119.15 | I33: Manual for cost research in the Netherlands | J33: 117.59 | K33: 120.71 | L33: 117.59 | M33: 120.7
F34: Anesthetic assistant | G34: 37.45 | H34: 37.45 | I34: Collective Labor Agreements academic and general hospitals | J34: 36.84 | K34: 38.06 | L34: 36.84 | M34: 38.06
F35: Technician | G35: 37.45 | H35: 37.45 | I35: Collective Labor Agreements academic and general hospitals | J35: 36.84 | K35: 38.06 | L35: 36.84 | M35: 38.06
F37: Total costs conventional OR | G37: =(nr_Surgeon_conventional*cSurgeon+nr_ORassisstant_conventional*cOR_assistant+cAnesthesist*nr_anesthesist_conventional+nr_anesth.assistant_conventional*cAnesthetic_assistant) -> 328.53 | J37: =nr_Surgeon_conventional*min_cSurgeon+nr_ORassisstant_conventional*min_cORassistant+nr_anesthesist_conventional*min_cAnesthesist+nr_anesth.assistant_conventional*min_cAnesth_assistant -> 323.75 | K37: =nr_Surgeon_conventional*max_cSurgeon+nr_ORassisstant_conventional*max_cOR_assistant+nr_anesthesist_conventional*max_cAnesthesist+nr_anesth.assistant_conventional*max_cAnesth_assistant -> 333.31
F38: Total costs hybrid OR | G38: =(nr_surgeon_hybrid*cSurgeon+nr_ORassistant_hybrid*cOR_assistant+nr_anesthesist_hybrid*cAnesthesist+nr_anesth.assistant_hybrid*cAnesthetic_assistant+nr_technician_hybrid*cTechnician) -> 365.98 | J38: =nr_surgeon_hybrid*min_cSurgeon+nr_ORassistant_hybrid*min_cORassistant+nr_anesth.assistant_hybrid*min_cAnesth_assistant+nr_anesthesist_hybrid*min_cAnesthesist+nr_technician_hybrid*min_cTechnician -> 360.59 | K38: =nr_surgeon_hybrid*max_cSurgeon+nr_ORassistant_hybrid*max_cOR_assistant+nr_anesth.assistant_hybrid*max_cAnesth_assistant+nr_anesthesist_hybrid*max_cAnesthesist+nr_technician_hybrid*max_cTechnician -> 371.37

Sheet Results
E2: Results
G4: Conventional OR | H4: Min | I4: Max | J4: Hybrid OR | K4: Min | L4: Max
E5: 1. Construction
F6: Annual | G6: =cTotal_construction_conventional/Annuity_construction+Maintenance_costs_buildings*cTotal_construction_conventional -> € 71,673 | H6: =min_Ctotal_construction_conventional/Annuity_construction+min_Ctotal_construction_conventional*Maintenance_costs_buildings -> € 47,141 | I6: =max_Ctotal_construction_conventional/Annuity_construction+max_Ctotal_construction_conventional*Maintenance_costs_buildings -> € 97,118 | J6: =cTotal_construction_hybrid/Annuity_construction+Maintenance_costs_buildings*cTotal_construction_hybrid -> € 126,092 | K6: =min_Ctotal_construction_hybrid/Annuity_construction+min_Ctotal_construction_hybrid*Maintenance_costs_buildings -> € 60,726 | L6: =max_Ctotal_construction_hybrid/Annuity_construction+max_Ctotal_construction_hybrid*Maintenance_costs_buildings -> € 180,945
B7: Instructions | F7: Per minute | G7: =cAnnualConstructionConventional/(Available_OR_hours*60*utilizationrate_conventional) -> € 0.64 | H7: =min_cAnnual_construction_conventional/(Available_OR_hours*60*utilizationrate_conventional) -> € 0.42 | I7: =max_cAnnual_construction_conventional/(Available_OR_hours*60*utilizationrate_conventional) -> € 0.87 | J7: =cAnnualConstructionHybrid/(Available_OR_hours*60*utilizationrate_hybrid) -> € 2.38 | K7: =min_cAnnual_construction_hybrid/(Available_OR_hours*60*utilizationrate_hybrid) -> € 1.15 | L7: =max_cAnnual_construction_hybrid/(Available_OR_hours*60*utilizationrate_hybrid) -> € 3.42
E9: 2. Inventory
F10: Annual | G10: =(SUM(Costs!G12:G17)/Annuity_inventory+(SUM(Costs!G12:G17)*Maintenance_costs_inventory)) -> € 113,330 | H10: =(SUM(Costs!L12:L17)/Annuity_inventory+(SUM(Costs!L12:L17)*Maintenance_costs_inventory)) -> € 63,710 | I10: =(SUM(Costs!M12:M17)/Annuity_inventory+(SUM(Costs!M12:M17)*Maintenance_costs_inventory)) -> € 153,379 | J10: =(SUM(Costs!G20:G26)/Annuity_inventory+(SUM(Costs!G20:G26)*Maintenance_costs_inventory))+(Costs!G27/Annuity_inventory+(Costs!G27*Maintenance_costs_for_advancedtechnology)) -> € 433,241 | K10: =(SUM(Costs!L20:L26)/Annuity_inventory+(SUM(Costs!L20:L26)*Maintenance_costs_inventory))+(Costs!L27/Annuity_inventory+(Costs!L27*Maintenance_costs_for_advancedtechnology)) -> € 329,938 | L10: =(SUM(Costs!M20:M26)/Annuity_inventory+(SUM(Costs!M20:M26)*Maintenance_costs_inventory))+(Costs!M27/Annuity_inventory+(Costs!M27*Maintenance_costs_for_advancedtechnology)) -> € 519,947
B11: Input parameters | F11: Per minute | G11: =cAnnualInventoryConventional/(Available_OR_hours*60*utilizationrate_conventional) -> € 1.01 | H11: =H10/(Available_OR_hours*60*utilizationrate_conventional) -> € 0.57 | I11: =I10/(Available_OR_hours*60*utilizationrate_conventional) -> € 1.37 | J11: =((SUM(Costs!G20:G26)/Annuity_inventory+(SUM(Costs!G20:G26)*Maintenance_costs_inventory))/(Available_OR_hours*60*utilizationrate_hybrid))+((Costs!G27/Annuity_inventory+(Costs!G27*Maintenance_costs_for_advancedtechnology))/(Available_OR_hours*60*(utilizationrate_hybrid*utilizationrate_carm/100))) -> € 8.18 | K11: =K10/(Available_OR_hours*60*utilizationrate_hybrid) -> € 6.23 | L11: =L10/(Available_OR_hours*60*utilizationrate_hybrid) -> € 9.82
E13: 3. Personnel
F14: Per minute | G14: =cTotal_personnel_conventional/60 -> € 5.48 | H14: =min_hourpersonnel_conventional/60 -> € 5.40 | I14: =max_hourpersonnel_conventional/60 -> € 5.56 | J14: =cTotal_personnel_hybrid/60 -> € 6.10 | K14: =min_hourpersonnel_hybrid/60 -> € 6.01 | L14: =max_hourpersonnel_hybrid/60 -> € 6.19
B15: Cost parameters
E16: 4. Overhead
F17: 4.1 overhead construction (annual) | G17: =cAnnualConstructionConventional*Overhead -> € 27,236 | H17: =min_cAnnual_construction_conventional*Overhead -> € 17,914 | I17: =max_cAnnual_construction_conventional*Overhead -> € 36,905 | J17: =cAnnualConstructionHybrid*Overhead -> € 47,915 | K17: =min_cAnnual_construction_hybrid*Overhead -> € 23,076 | L17: =max_cAnnual_construction_hybrid*Overhead -> € 68,759
F18: 4.1 overhead construction (per minute) | G18: =(cAnnual_overhead_construction_conventional/(Available_OR_hours*utilizationrate_conventional))/60 -> € 0.24 | H18: =H17/(Available_OR_hours*60*utilizationrate_conventional) -> € 0.16 | I18: =(I17/(Available_OR_hours*60*utilizationrate_conventional)) -> € 0.33 | J18: =(cAnnual_overhead_construction_hybrid/(Available_OR_hours*utilizationrate_hybrid))/60 -> € 0.90 | K18: =(K17/(Available_OR_hours*utilizationrate_hybrid))/60 -> € 0.44 | L18: =(L17/(Available_OR_hours*utilizationrate_hybrid))/60 -> € 1.30
B19: Results | F19: 4.2 overhead personnel (per minute) | G19: =Overhead*cMinutePersonnelConventional -> € 2.08 | H19: =H14*Overhead -> € 2.05 | I19: =I14*Overhead -> € 2.11 | J19: =cMinutePersonnelHybrid*Overhead -> € 2.32 | K19: =K14*Overhead -> € 2.28 | L19: =L14*Overhead -> € 2.35
F20: Total (per minute) | G20: =(G19+G18) -> € 2.32 | H20: =H19+H18 -> € 2.21 | I20: € 2.44 | J20: =J19+J18 -> € 3.22 | K20: € 2.72 | L20: € 3.65
E22: Total annual | G22: =cAnnualConstructionConventional+cAnnualInventoryConventional+cAnnual_overhead_construction_conventional -> € 212,238.39 | H22: =min_cAnnual_construction_conventional+H10+H17 -> € 128,764.81 | I22: =max_cAnnual_construction_conventional+I10+I17 -> € 287,401.39 | J22: =cAnnual_overhead_construction_hybrid+cAnnualInventoryHybrid+cAnnualConstructionHybrid -> € 607,248.30 | K22: =min_cAnnual_construction_hybrid+K10+K17 -> € 413,739.31 | L22: =max_cAnnual_construction_hybrid+L10+L17 -> € 769,652.15
B23: Figures
E24: Total per minute | G24: =G7+cMinuteInventoryConventional+cMinutePersonnelConventional+cOverheadTotalConventional -> € 9.45 | H24: =H7+H11+H14+H20 -> € 8.60 | I24: =I7+I11+I14+I20 -> € 10.23 | J24: =J7+cMinuteInventoryHybrid+cMinutePersonnelHybrid+cOverheadTotalHybrid -> € 19.88 | K24: =K7+K11+K14+K20 -> € 16.10 | L24: =L7+L11+L14+L20 -> € 23.07

Sheet Figures
E2: Figures
E5: Annual fixed costs | N5: Costs per minute
B7: Instructions
B11: Input parameters
B15: Cost parameters
E18: The inner circle shows the distribution of the costs for the conventional OR | N18: The per minute costs per OR
B19: Results | E19: where the outer circle shows the distribution of the costs for the hybrid OR
E21: Costs of the conventional and hybrid OR by utilization rate of the OR | N21: Costs of the hybrid OR by utilization rate C-arm
B23: Figures
E36: Assuming the utilization rate of the C-arm is 100%, meaning the fixed C-arm | N36: Assuming the utilization rate of the hybrid OR is | R36: =utilizationrate_hybrid -> 43%
E37: is used during every procedure performed in the hybrid OR. | N37: You can change the utilization rate of the hybrid OR in the input tab.
G42: Costs per minute | H42: Costs per minute
F43: Utilization rate | G43: conventional OR | H43: hybrid OR
D44: Basecase values | F44: =utilizationrate_conventional -> 92% | H44: =Results!J24 -> € 19.88
M45: utilization rate c-arm | Q45: utilization rate c-arm | R45: costs per minute hybrid OR
D46: Scenario values | F46: 10% | G46: € 24.90 | H46: € 58.03 | M46: 100 | Q46: 10 | R46: € 135.60
F47: 20% | G47: € 16.23 | H47: € 33.22 | Q47: 20 | R47: € 78.72
F48: 30% | G48: € 13.34 | H48: € 24.95 | M48: default | Q48: 30 | R48: € 59.77
F49: 40% | G49: € 11.89 | H49: € 20.82 | M49: 100 | Q49: 40 | R49: € 50.29
F50: 50% | G50: € 11.02 | H50: € 18.34 | Q50: 50 | R50: € 44.60
F51: 60% | G51: € 10.45 | H51: € 16.69 | Q51: 60 | R51: € 40.81
F52: 70% | G52: € 10.03 | H52: € 15.50 | Q52: 70 | R52: € 38.10
F53: 80% | G53: € 9.72 | H53: € 14.62 | Q53: 80 | R53: € 36.07
F54: 90% | G54: € 9.48 | H54: € 13.93 | Q54: 90 | R54: € 34.49
F55: 100% | G55: € 9.29 | H55: € 13.38 | Q55: 100 | R55: € 33.22
